[Event "TOP 12F 2021"]
[Site "RENNES, France"]
[Date "2021.08.29"]
[Round "5.12"]
[White "Steil-Antoni, Fiona"]
[Black "Demais, Eilean"]
[Result "1-0"]
[TimeControl "1H30 + 30 sec/coup"]
[WhiteElo "2153"]
[BlackElo "1463"]

1. e4 {[%clk 01:30:58]} c5 {[%clk 01:30:45]} 2. Nc3 {[%clk 01:31:17]} Nc6
{[%clk 01:30:59]} 3. f4 {[%clk 01:31:41]} e6 {[%clk 01:30:27]} {[%emt
00:00:42]} 4. Nf3 {[%clk 01:32:05]} {[%emt 00:00:06]} Nge7 {[%clk 01:29:39]}
{[%emt 00:01:17]} 5. g3 {[%clk 01:32:13]} {[%emt 00:00:23]} g6 {[%clk
01:28:23]} {[%emt 00:01:46]} 6. Bg2 {[%clk 01:32:33]} {[%emt 00:00:10]} Bg7
{[%clk 01:28:24]} {[%emt 00:00:30]} 7. O-O {[%clk 01:32:44]} {[%emt 00:00:18]}
O-O {[%clk 01:27:24]} {[%emt 00:01:30]} 8. d3 {[%clk 01:32:35]} {[%emt
00:00:39]} d5 {[%clk 01:20:11]} {[%emt 00:07:44]} 9. Qe1 {[%clk 01:31:06]}
{[%emt 00:01:59]} Rb8 {[%clk 01:16:39]} {[%emt 00:04:02]} 10. h3 {[%clk
01:28:43]} {[%emt 00:02:54]} b5 {[%clk 01:12:11]} {[%emt 00:04:58]} 11. Kh2
{[%clk 01:28:18]} {[%emt 00:00:54]} c4 {[%clk 01:08:00]} {[%emt 00:04:41]} 12.
a3 {[%clk 01:26:18]} {[%emt 00:02:30]} a5 {[%clk 01:04:22]} {[%emt 00:04:08]}
13. g4 {[%clk 01:23:58]} {[%emt 00:02:49]} b4 {[%clk 00:59:51]} {[%emt
00:05:01]} 14. axb4 {[%clk 01:24:06]} {[%emt 00:00:22]} axb4 {[%clk 00:59:51]}
{[%emt 00:00:31]} 15. Ne2 {[%clk 01:19:46]} {[%emt 00:04:50]} Qb6 {[%clk
00:48:55]} {[%emt 00:11:25]} 16. e5 {[%clk 01:16:13]} {[%emt 00:04:03]} Ba6
{[%clk 00:44:48]} {[%emt 00:04:37]} 17. d4 {[%clk 01:11:38]} {[%emt 00:05:05]}
Rfc8 {[%clk 00:39:52]} {[%emt 00:05:25]} 18. c3 {[%clk 01:10:10]} {[%emt
00:01:59]} Bf8 {[%clk 00:35:53]} {[%emt 00:04:29]} 19. Qh4 {[%clk 01:09:05]}
{[%emt 00:01:36]} h6 {[%clk 00:30:09]} {[%emt 00:06:14]} 20. f5 {[%clk
01:08:04]} {[%emt 00:01:30]} g5 {[%clk 00:28:17]} {[%emt 00:02:22]} 21. Bxg5
{[%clk 01:06:51]} {[%emt 00:01:43]} exf5 {[%clk 00:27:00]} {[%emt 00:01:47]} 22.
Bxh6 {[%clk 01:05:20]} {[%emt 00:02:01]} Ng6 {[%clk 00:25:59]} {[%emt
00:01:31]} 23. Qh5 {[%clk 01:04:48]} {[%emt 00:01:02]} fxg4 {[%clk 00:25:25]}
{[%emt 00:01:05]} 24. Ng5 {[%clk 01:04:32]} {[%emt 00:00:46]} Ncxe5 {[%clk
00:19:22]} {[%emt 00:06:33]} 25. Bxf8 {[%clk 01:03:31]} {[%emt 00:01:31]} Kxf8
{[%clk 00:19:32]} {[%emt 00:00:20]} 26. dxe5 {[%clk 01:03:14]} {[%emt
00:00:47]} Rc7 {[%clk 00:18:34]} {[%emt 00:01:28]} 27. Rf6 {[%clk 01:02:12]}
{[%emt 00:01:32]} Qe3 {[%clk 00:14:51]} {[%emt 00:04:14]} 28. Qxg6 {[%clk
01:02:24]} {[%emt 00:00:18]} Qxe5+ {[%clk 00:09:36]} {[%emt 00:05:45]} 29. Ng3
{[%clk 01:02:51]} {[%emt 00:00:02]} 1-0

[Event "TOP 12F 2021"]
[Site "RENNES, France"]
[Date "2021.08.29"]
[Round "5.14"]
[White "Seite, Yamina"]
[Black "Boutant, Jade"]
[Result "1-0"]
[TimeControl "1H30 + 30 sec/coup"]
[WhiteElo "1870"]
[BlackElo "1747"]

1. e4 {[%clk 01:30:57]} {[%emt 00:00:01]} d6 {[%clk 01:30:42]} 2. g3 {[%clk
01:30:13]} {[%emt 00:00:26]} Nf6 {[%clk 01:30:40]} {[%emt 00:00:31]} 3. Bg2
{[%clk 01:30:24]} {[%emt 00:00:19]} g6 {[%clk 01:30:19]} {[%emt 00:00:50]} 4.
Ne2 {[%clk 01:30:11]} {[%emt 00:00:43]} Bg7 {[%clk 01:30:20]} {[%emt 00:00:29]}
5. O-O {[%clk 01:29:40]} {[%emt 00:01:02]} O-O {[%clk 01:29:43]} {[%emt
00:01:07]} 6. d3 {[%clk 01:26:58]} {[%emt 00:03:12]} c6 {[%clk 01:28:46]}
{[%emt 00:01:27]} 7. Nd2 {[%clk 01:23:02]} {[%emt 00:04:27]} Nbd7 {[%clk
01:25:13]} {[%emt 00:04:03]} 8. h3 {[%clk 01:16:42]} {[%emt 00:06:50]} d5
{[%clk 01:20:23]} {[%emt 00:05:20]} 9. f4 {[%clk 01:03:14]} {[%emt 00:13:58]}
e5 {[%clk 01:16:40]} {[%emt 00:04:13]} 10. fxe5 {[%clk 01:00:44]} {[%emt
00:03:00]} Nxe5 {[%clk 01:16:30]} {[%emt 00:00:38]} 11. d4 {[%clk 01:01:04]}
{[%emt 00:00:11]} Ned7 {[%clk 01:08:26]} {[%emt 00:08:34]} 12. e5 {[%clk
00:58:05]} {[%emt 00:03:30]} Ne8 {[%clk 01:05:25]} {[%emt 00:03:29]} 13. Nf3
{[%clk 00:56:20]} {[%emt 00:02:15]} h6 {[%clk 01:00:20]} {[%emt 00:05:36]} 14.
Nf4 {[%clk 00:44:21]} {[%emt 00:12:29]} Nc7 {[%clk 00:59:56]} {[%emt 00:00:53]}
15. Nh2 {[%clk 00:38:41]} {[%emt 00:06:11]} Ne6 {[%clk 00:32:43]} {[%emt
00:27:43]} 16. Nxe6 {[%clk 00:34:16]} {[%emt 00:04:55]} fxe6 {[%clk 00:32:55]}
{[%emt 00:00:17]} 17. Ng4 {[%clk 00:31:29]} {[%emt 00:03:17]} g5 {[%clk
00:25:45]} {[%emt 00:07:40]} 18. Be3 {[%clk 00:28:33]} {[%emt 00:03:26]} Rf5
{[%clk 00:21:59]} {[%emt 00:04:13]} 19. Nxh6+ {[%clk 00:20:50]} {[%emt
00:08:17]} Bxh6 {[%clk 00:20:22]} {[%emt 00:02:07]} 20. Qh5 {[%clk 00:21:13]}
{[%emt 00:00:07]} Kg7 {[%clk 00:12:03]} {[%emt 00:08:48]} 21. h4 {[%clk
00:18:16]} {[%emt 00:03:27]} Qh8 {[%clk 00:06:36]} {[%emt 00:05:57]} 22. g4
{[%clk 00:14:52]} {[%emt 00:03:55]} Rf8 {[%clk 00:02:28]} {[%emt 00:04:37]} 23.
hxg5 {[%clk 00:13:37]} {[%emt 00:01:46]} Qh7 {[%clk 00:00:33]} {[%emt
00:02:25]} 24. gxh6+ {[%clk 00:13:47]} {[%emt 00:00:20]} Kh8 {[%clk 00:00:40]}
{[%emt 00:00:23]} 25. Rxf8+ {[%clk 00:13:41]} {[%emt 00:00:36]} Nxf8 {[%clk
00:00:55]} {[%emt 00:00:14]} 26. Rf1 {[%clk 00:13:56]} {[%emt 00:00:15]} Ng6
{[%clk 00:00:33]} {[%emt 00:00:53]} 27. Rf6 {[%clk 00:14:06]} {[%emt 00:00:20]}
1-0

[Event "TOP 12F 2021"]
[Site "RENNES, France"]
[Date "2021.08.29"]
[Round "5.15"]
[White "Le Marec, Laura"]
[Black "Coriat, Caroline"]
[Result "1-0"]
[TimeControl "1H30 + 30 sec/coup"]
[WhiteElo "2118"]
[BlackElo "1784"]

1. c4 {[%clk 01:25:49]} {[%emt 00:04:22]} e5 {[%clk 01:30:44]} {[%emt
00:00:17]} 2. Nc3 {[%clk 01:26:06]} {[%emt 00:00:12]} Nc6 {[%clk 01:31:03]}
{[%emt 00:00:10]} 3. g3 {[%clk 01:25:36]} {[%emt 00:01:01]} f5 {[%clk
01:31:24]} {[%emt 00:00:09]} 4. Bg2 {[%clk 01:24:48]} {[%emt 00:01:18]} Nf6
{[%clk 01:30:31]} {[%emt 00:01:23]} 5. e3 {[%clk 01:23:52]} {[%emt 00:01:27]}
Bb4 {[%clk 01:25:43]} {[%emt 00:05:18]} 6. Nge2 {[%clk 01:23:13]} {[%emt
00:01:08]} Bxc3 {[%clk 01:11:57]} {[%emt 00:14:16]} 7. Nxc3 {[%clk 01:22:31]}
{[%emt 00:01:11]} O-O {[%clk 01:11:44]} {[%emt 00:00:43]} 8. d3 {[%clk
01:19:53]} {[%emt 00:03:08]} Ne7 {[%clk 01:04:17]} {[%emt 00:07:58]} 9. O-O
{[%clk 01:04:51]} {[%emt 00:15:31]} c6 {[%clk 00:59:32]} {[%emt 00:05:15]} 10.
b3 {[%clk 00:55:39]} {[%emt 00:09:42]} d6 {[%clk 00:57:33]} {[%emt 00:02:29]}
11. Ba3 {[%clk 00:52:12]} {[%emt 00:03:57]} f4 {[%clk 00:51:34]} {[%emt
00:06:29]} 12. d4 {[%clk 00:44:32]} {[%emt 00:08:09]} exd4 {[%clk 00:45:45]}
{[%emt 00:06:19]} 13. Qxd4 {[%clk 00:43:34]} {[%emt 00:01:27]} Nf5 {[%clk
00:45:25]} {[%emt 00:00:51]} 14. Qxf4 {[%clk 00:40:37]} {[%emt 00:03:27]} Ng4
{[%clk 00:37:17]} {[%emt 00:08:39]} 15. Qxg4 {[%clk 00:34:24]} {[%emt
00:06:43]} Nxe3 {[%clk 00:36:52]} {[%emt 00:00:55]} 16. Qd4 {[%clk 00:33:37]}
{[%emt 00:01:16]} Nxf1 {[%clk 00:36:11]} {[%emt 00:01:12]} 17. Rxf1 {[%clk
00:29:27]} {[%emt 00:04:39]} Qg5 {[%clk 00:30:20]} {[%emt 00:06:21]} 18. Ne4
{[%clk 00:25:44]} {[%emt 00:04:13]} Qh5 {[%clk 00:28:45]} {[%emt 00:02:05]} 19.
Nxd6 {[%clk 00:20:35]} {[%emt 00:05:40]} Bh3 {[%clk 00:27:19]} {[%emt
00:01:56]} 20. Bb2 {[%clk 00:18:01]} {[%emt 00:03:04]} Rf6 {[%clk 00:24:55]}
{[%emt 00:02:54]} 21. Bxh3 {[%clk 00:16:28]} {[%emt 00:02:03]} Qxh3 {[%clk
00:24:57]} {[%emt 00:00:27]} 22. c5 {[%clk 00:16:34]} {[%emt 00:00:26]} Rd8
{[%clk 00:22:12]} {[%emt 00:03:15]} 23. Qc4+ {[%clk 00:15:25]} {[%emt
00:01:40]} Re6 {[%clk 00:21:06]} {[%emt 00:01:36]} 24. Re1 {[%clk 00:14:42]}
{[%emt 00:01:12]} 1-0

[Event "TOP 12F 2021"]
[Site "RENNES, France"]
[Date "2021.08.29"]
[Round "5.16"]
[White "Parot de Sousa, Sophie"]
[Black "Girod, Sarah"]
[Result "1/2-1/2"]
[TimeControl "1H30 + 30 sec/coup"]
[WhiteElo "1447"]
[BlackElo "1504"]

1. c4 {[%clk 01:30:58]} e5 {[%clk 01:30:53]} 2. Nc3 {[%clk 01:31:21]} Nf6
{[%clk 01:30:39]} 3. g3 {[%clk 01:30:53]} {[%emt 00:00:50]} d5 {[%clk
01:30:38]} {[%emt 00:00:30]} 4. cxd5 {[%clk 01:30:14]} {[%emt 00:01:08]} Nxd5
{[%clk 01:31:01]} {[%emt 00:00:08]} 5. Bg2 {[%clk 01:30:37]} {[%emt 00:00:08]}
Nb6 {[%clk 01:31:24]} {[%emt 00:00:06]} 6. Nf3 {[%clk 01:29:42]} {[%emt
00:01:25]} Nc6 {[%clk 01:31:39]} {[%emt 00:00:15]} 7. d3 {[%clk 01:27:49]}
{[%emt 00:02:23]} Be7 {[%clk 01:31:47]} {[%emt 00:00:21]} 8. O-O {[%clk
01:26:38]} {[%emt 00:01:41]} O-O {[%clk 01:32:11]} {[%emt 00:00:06]} 9. a3
{[%clk 01:24:49]} {[%emt 00:02:20]} Re8 {[%clk 01:28:19]} {[%emt 00:04:22]} 10.
Ne4 {[%clk 01:14:27]} {[%emt 00:10:51]} Bf8 {[%clk 01:19:49]} {[%emt 00:09:00]}
11. b4 {[%clk 00:54:47]} {[%emt 00:20:10]} Nd4 {[%clk 01:16:22]} {[%emt
00:03:58]} 12. Bb2 {[%clk 00:51:07]} {[%emt 00:04:11]} Bg4 {[%clk 01:10:29]}
{[%emt 00:06:23]} 13. Nxd4 {[%clk 00:42:06]} {[%emt 00:09:30]} exd4 {[%clk
01:10:48]} {[%emt 00:00:10]} 14. h3 {[%clk 00:40:51]} {[%emt 00:01:46]} Bf5
{[%clk 01:10:41]} {[%emt 00:00:37]} 15. Rc1 {[%clk 00:39:22]} {[%emt 00:01:59]}
Qd7 {[%clk 00:56:22]} {[%emt 00:14:49]} 16. Kh2 {[%clk 00:31:31]} {[%emt
00:08:20]} a5 {[%clk 00:50:06]} {[%emt 00:06:45]} 17. Nc5 {[%clk 00:17:47]}
{[%emt 00:14:15]} Bxc5 {[%clk 00:45:35]} {[%emt 00:05:01]} 18. bxc5 {[%clk
00:16:53]} {[%emt 00:01:24]} Na4 {[%clk 00:45:55]} {[%emt 00:00:10]} 19. Ba1
{[%clk 00:15:43]} {[%emt 00:01:41]} Nc3 {[%clk 00:17:00]} {[%emt 00:29:25]} 20.
Bxc3 {[%clk 00:15:50]} {[%emt 00:00:24]} dxc3 {[%clk 00:17:25]} {[%emt
00:00:05]} 21. Rxc3 {[%clk 00:16:09]} {[%emt 00:00:11]} Qd4 {[%clk 00:16:10]}
{[%emt 00:01:45]} 22. Rc4 {[%clk 00:08:27]} {[%emt 00:08:12]} Qf6 {[%clk
00:16:10]} {[%emt 00:00:30]} 23. e3 {[%clk 00:05:05]} {[%emt 00:03:53]} Rad8
{[%clk 00:16:10]} {[%emt 00:00:30]} 24. d4 {[%clk 00:05:06]} {[%emt 00:00:29]}
Qg6 {[%clk 00:11:37]} {[%emt 00:05:03]} 25. Rc3 {[%clk 00:04:38]} {[%emt
00:00:58]} c6 {[%clk 00:07:03]} {[%emt 00:05:04]} 26. Qb3 {[%clk 00:02:45]}
{[%emt 00:02:23]} Bc8 {[%clk 00:06:45]} {[%emt 00:00:49]} 27. Qb6 {[%clk
00:02:40]} {[%emt 00:00:34]} h5 {[%clk 00:06:56]} {[%emt 00:00:20]} 28. h4
{[%clk 00:02:43]} {[%emt 00:00:27]} Qf5 {[%clk 00:05:21]} {[%emt 00:02:04]} 29.
Qb1 {[%clk 00:02:30]} {[%emt 00:00:42]} Qf6 {[%clk 00:05:18]} {[%emt 00:00:33]}
30. Bh3 {[%clk 00:02:13]} {[%emt 00:00:48]} g5 {[%clk 00:04:36]} {[%emt
00:01:12]} 31. Bxc8 {[%clk 00:02:03]} {[%emt 00:00:40]} Rxc8 {[%clk 00:05:01]}
{[%emt 00:00:05]} 32. hxg5 {[%clk 00:02:02]} {[%emt 00:00:32]} Qxg5 {[%clk
00:05:24]} {[%emt 00:00:07]} 33. Qd1 {[%clk 00:01:32]} {[%emt 00:01:00]} Kh8
{[%clk 00:04:51]} {[%emt 00:01:03]} 34. Rh1 {[%clk 00:01:14]} {[%emt 00:00:48]}
Rg8 {[%clk 00:04:54]} {[%emt 00:00:27]} 35. Kg2 {[%clk 00:01:27]} {[%emt
00:00:17]} Qd5+ {[%clk 00:01:08]} {[%emt 00:04:16]} 36. Qf3 {[%clk 00:01:20]}
{[%emt 00:00:37]} Qxf3+ {[%clk 00:01:25]} {[%emt 00:00:13]} 37. Kxf3 {[%clk
00:01:47]} {[%emt 00:00:03]} Rg5 {[%clk 00:01:47]} {[%emt 00:00:08]} 38. Rb3
{[%clk 00:01:37]} {[%emt 00:00:40]} Rc7 {[%clk 00:02:00]} {[%emt 00:00:16]} 39.
Rh4 {[%clk 00:01:48]} {[%emt 00:00:19]} Kg7 {[%clk 00:01:54]} {[%emt 00:00:36]}
40. Kf4 {[%clk 00:01:25]} {[%emt 00:00:53]} Kg6 {[%clk 00:01:22]} {[%emt
00:01:02]} 41. Kf3 {[%clk 00:00:52]} {[%emt 00:01:03]} Rf5+ {[%clk 00:00:52]}
{[%emt 00:01:00]} 42. Ke2 {[%clk 00:01:05]} {[%emt 00:00:17]} Kg5 {[%clk
00:01:05]} {[%emt 00:00:18]} 43. Rb1 {[%clk 00:00:45]} {[%emt 00:00:49]} Re7
{[%clk 00:00:41]} {[%emt 00:00:54]} 44. Rbh1 {[%clk 00:00:39]} {[%emt
00:00:36]} Kg6 {[%clk 00:01:04]} {[%emt 00:00:07]} 45. Rb1 {[%clk 00:00:56]}
{[%emt 00:00:13]} Kg5 {[%clk 00:00:39]} {[%emt 00:00:55]} 46. Rbh1 {[%clk
00:00:48]} {[%emt 00:00:38]} Kg6 {[%emt 00:01:29]} 47. g4 {[%emt 00:00:01]}
1/2-1/2